bitfinex-derivatives/quotes_SOLF0:USTF0_20250731
["timestamp","ask_amount","ask_price","bid_price","bid_amount"]
[1753999173481,5.7556,173.77,173.74,3.08]
[1753999173884,5.7557,173.76,173.75,3.08]
[1753999174180,6.80400399,173.82,173.75,3.08]
[1753999174383,5.7556,173.77,173.76,3.08]
[1753999174690,9.86509165,173.77,173.76,3.08]
[1753999176387,5.7552,173.78,173.77,3.08]
[1753999176587,9.86795998,173.78,173.77,3.08]
[1753999178083,13.15795998,173.78,173.77,3.08]
[1753999179375,9.86795998,173.78,173.77,3.08]
[1753999179690,4.11275998,173.78,173.77,3.08]
[1753999180477,9.86785998,173.78,173.77,3.08]
[1753999181784,4.11275998,173.78,173.77,3.08]
[1753999182086,3.29,173.81,173.77,3.08]
[1753999182087,5.7548,173.79,173.77,3.08]
[1753999182282,5.7548,173.79,173.78,3.08]
[1753999182585,4.10348799,173.79,173.78,3.08]
[1753999183177,9.85818799,173.79,173.78,3.08]
[1753999183586,4.10348799,173.79,173.78,3.08]
[1753999183787,3.29,173.84,173.78,3.08]
[1753999183986,7.39394973,173.83,173.78,3.08]
[1753999184288,4.10394973,173.82,173.81,3.08]
[1753999184682,3.29,173.89,173.82,3.08]
[1753999184882,3.29,173.89,173.83,6.80400399]
[1753999185083,3.29,173.89,173.84,3.08]
[1753999185484,11.52673093,173.93,173.84,3.08]
[1753999185680,5.7515,173.89,173.85,3.08]
[1753999185986,3.29,173.91,173.85,3.08]
[1753999186190,5.7519,173.88,173.85,3.08]
[1753999186385,3.29,173.91,173.85,3.08]
[1753999186781,3.29,173.87,173.8,3.08]
[1753999186981,3.29,173.85,173.8,3.08]
[1753999187288,5.7541,173.81,173.8,3.08]
[1753999187491,3.29,173.88,173.8,3.08]
[1753999187985,3.29,173.84,173.82,3.08]
[1753999188289,5.7541,173.81,173.8,3.08]
[1753999188488,3.29,173.81,173.76,113.78]
[1753999188881,5.7545,173.8,173.79,3.08]
[1753999192491,3.29,173.86,173.79,9.88400399]
[1753999192688,3.29,173.86,173.8,3.08]
[1753999193088,5.7536,173.83,173.8,3.08]
[1753999193692,5.7536,173.83,173.82,3.08]
[1753999197691,3.29,173.9,173.82,8.8335]
[1753999197894,7.37527827,173.89,173.83,3.08]
[1753999198091,7.37527827,173.88,173.83,3.08]
[1753999198287,3.23,173.9,173.84,3.23]
[1753999198592,4.08483675,173.89,173.84,3.23]
[1753999198795,3.23,173.9,173.84,8.9829]
[1753999198989,4.08598728,173.89,173.85,3.23]
[1753999199195,5.752,173.88,173.85,3.23]
[1753999200294,3.23,173.93,173.88,3.23]
[1753999200496,4.08502782,173.92,173.88,3.23]
[1753999200798,3.23,173.89,173.83,3.23]
[1753999200997,3.23,173.87,173.83,3.23]
[1753999201397,7.31336424,173.86,173.8,3.23]
[1753999201597,6.80400399,173.91,173.82,3.23]
[1753999201797,7.31410405,173.9,173.86,3.23]
[1753999201992,6.80400399,173.93,173.84,3.23]
[1753999202292,6.80400399,173.93,173.83,6.80400399]
[1753999202293,5.7521,173.87,173.86,3.23]
[1753999202493,16.22122694,173.96,173.81,6.80400399]
[1753999202494,6.80400399,173.91,173.81,6.80400399]
[1753999202692,6.80400399,173.87,173.78,3.23]
[1753999202902,3.23,173.85,173.78,3.23]
[1753999203294,8.9828,173.85,173.81,5.754]
[1753999203502,3.23,173.89,173.84,3.23]
[1753999203697,3.23,173.87,173.82,3.23]
[1753999204003,3.23,173.85,173.77,386.76]
[1753999204404,3.23,173.85,173.78,3.23]
[1753999204699,3.23,173.82,173.77,386.76]
[1753999204999,3.23,173.82,173.8,3.23]
[1753999205000,5.7544,173.81,173.8,3.23]
[1753999205797,6.80400399,173.89,173.8,3.23]
[1753999206001,7.31202665,173.88,173.81,5.754]
[1753999206200,3.23,173.88,173.82,3.23]
[1753999206397,6.80400399,173.92,173.82,3.23]
[1753999206599,10.03400399,173.9,173.83,3.23]
[1753999206803,5.7537,173.82,173.81,3.23]
[1753999207602,5.7534,173.83,173.82,3.23]
[1753999207804,6.80400399,173.86,173.79,3.23]
[1753999208103,6.80400399,173.86,173.77,392.5152]
[1753999208104,5.7543,173.81,173.8,3.23]
[1753999208499,3.23,173.8,173.74,3.23]
[1753999208706,3.23,173.78,173.74,3.23]
[1753999208898,3.23,173.77,173.72,5.757]
[1753999209108,5.7559,173.76,173.75,3.23]
[1753999209604,6.80400399,173.81,173.72,6.80400399]
[1753999209809,10.03400399,173.83,173.73,3.23]
[1753999210008,7.30906767,173.82,173.75,3.23]
[1753999210209,3.23,173.82,173.75,3.23]
[1753999210600,3.23,173.82,173.78,5.755]
[1753999210799,3.23,173.82,173.75,3.23]
[1753999211112,3.23,173.82,173.76,5.7557]
[1753999211311,5.7545,173.8,173.74,6.80400399]
[1753999211506,6.80400399,173.84,173.78,3.23]
[1753999211713,3.23,173.81,173.78,3.23]
[1753999211918,5.7547,173.79,173.78,3.23]
[1753999212210,3.23,173.81,173.74,6.80400399]
[1753999212211,3.23,173.81,173.79,3.23]
[1753999212411,4.72272694,173.89,173.74,6.80400399]
[1753999212412,6.80400399,173.84,173.74,6.80400399]
[1753999212609,7.33331836,173.83,173.75,3.23]
[1753999212811,3.23,173.83,173.75,3.23]
[1753999213011,5.7538,173.82,173.79,3.23]
[1753999213207,5.7538,173.82,173.75,3.23]
[1753999213609,3.23,173.83,173.75,3.23]
[1753999214319,3.23,173.83,173.77,3.23]
[1753999214612,6.80400399,173.86,173.77,3.23]
[1753999214806,3.23,173.85,173.78,6.80400399]
[1753999215007,3.23,173.85,173.79,3.23]
[1753999215311,11.5009,173.92,173.85,3.23]
[1753999215312,6.80400399,173.92,173.85,3.23]
[1753999215611,4.10326882,173.91,173.82,6.80400399]
[1753999215813,4.10326882,173.9,173.8,6.80400399]
[1753999216114,3.23,173.88,173.86,3.23]
[1753999216609,3.23,173.91,173.79,113.56]
[1753999216812,6.80400399,173.92,173.86,3.23]
[1753999217012,3.23,173.88,173.81,6.80400399]
[1753999217211,3.23,173.88,173.82,3.23]
[1753999217412,5.7522,173.87,173.83,5.7532]
[1753999217613,3.23,173.88,173.85,3.23]
[1753999217813,5.7536,173.83,173.8,3.23]
[1753999218015,3.23,173.87,173.8,3.23]
[1753999218212,3.23,173.85,173.8,3.23]
[1753999218418,6.80400399,173.84,173.78,3.23]
[1753999218611,3.23,173.82,173.79,3.23]
[1753999219016,5.7544,173.81,173.8,3.23]
[1753999219820,5.7538,173.82,173.75,3.23]
[1753999220019,3.23,173.85,173.78,3.23]
[1753999220215,3.23,173.83,173.78,3.23]
[1753999220419,3.23,173.83,173.75,3.23]
[1753999220719,11.5034,173.89,173.75,3.23]
[1753999220720,6.80400399,173.8,173.75,3.23]
[1753999220924,5.7557,173.76,173.75,3.23]
[1753999221121,6.80400399,173.8,173.69,6.80400399]
[1753999221322,3.23,173.77,173.74,3.23]
[1753999221524,5.7563,173.75,173.74,3.23]
[1753999222123,5.7576,173.71,173.7,3.23]
[1753999222529,3.23,173.71,173.68,3.23]
[1753999222827,5.758,173.7,173.69,3.23]
[1753999223021,6.80400399,173.74,173.66,386.72]
[1753999223221,3.23,173.72,173.67,3.23]
[1753999223427,6.80400399,173.74,173.67,3.23]
[1753999223729,3.23,173.7,173.68,3.23]
[1753999223923,3.23,173.71,173.69,3.23]
[1753999224120,5.7579,173.7,173.69,3.23]
[1753999224428,3.23,173.73,173.66,3.23]
[1753999224624,5.7576,173.71,173.67,3.23]
[1753999225124,5.7594,173.65,173.63,3.23]
[1753999225320,3.23,173.7,173.63,3.23]
[1753999225516,3.23,173.68,173.6,3.23]
[1753999225723,3.23,173.66,173.6,3.23]
[1753999225925,10.03400399,173.65,173.59,3.23]
[1753999226118,3.23,173.64,173.57,3.23]
[1753999226922,3.23,173.6,173.49,6.80400399]
[1753999227123,3.23,173.58,173.51,3.23]
[1753999227822,3.23,173.55,173.52,3.23]
[1753999228222,5.7632,173.54,173.53,3.18]
[1753999229125,8.9927,173.55,173.53,3.18]
[1753999229327,5.7627,173.55,173.53,3.18]
[1753999229527,3.26,173.58,173.51,3.18]
[1753999230829,5.7621,173.57,173.51,3.18]
[1753999231030,3.26,173.58,173.48,113.52]
[1753999231031,3.26,173.62,173.53,6.80400399]
[1753999231529,6.80400399,173.61,173.54,3.18]
[1753999231829,3.26,173.6,173.54,3.18]
[1753999232026,5.7619,173.58,173.53,5.7633]
[1753999232227,9.0219,173.58,173.55,3.18]
[1753999232428,3.26,173.68,173.49,3.18]
[1753999232728,10.06400399,173.56,173.49,3.18]
[1753999232924,3.26,173.55,173.49,3.18]
[1753999233531,5.7635,173.53,173.45,6.80400399]
[1753999233730,3.26,173.53,173.44,113.54]
[1753999233930,3.26,173.49,173.4,3.18]
[1753999234532,6.80400399,173.54,173.49,3.18]
[1753999234726,3.26,173.59,173.44,3.18]
[1753999234930,6.80400399,173.55,173.44,6.80400399]
[1753999235132,3.26,173.54,173.45,3.18]
[1753999235332,3.26,173.54,173.48,3.18]
[1753999236328,6.80400399,173.49,173.43,3.18]
[1753999236531,6.80400399,173.47,173.41,3.18]
[1753999236732,6.80400399,173.6,173.41,3.18]
[1753999236939,3.26,173.46,173.39,3.18]
[1753999237631,3.26,173.46,173.42,3.18]
[1753999237833,5.7656,173.47,173.41,5.7671]
[1753999238031,6.80400399,173.47,173.42,3.18]
[1753999238233,6.80400399,173.47,173.38,113.56]
[1753999238234,3.26,173.44,173.38,113.56]
[1753999238529,3.26,173.46,173.39,3.18]
[1753999238735,5.7664,173.44,173.39,3.18]
[1753999239138,3.26,173.46,173.39,3.18]
[1753999239332,3.26,173.44,173.37,3.18]
[1753999239536,3.26,173.42,173.37,3.18]
[1753999239832,5.7678,173.4,173.35,5.7691]
[1753999240027,3.26,173.42,173.39,3.18]
[1753999241032,6.80400399,173.4,173.34,3.18]
[1753999241228,6.80400399,173.38,173.28,3.18]
[1753999241433,3.26,173.37,173.28,3.18]
[1753999242029,3.26,173.37,173.3,5.7707]
[1753999242030,5.7696,173.35,173.3,5.7707]
[1753999242334,3.26,173.37,173.31,3.18]
[1753999242540,5.7694,173.35,173.31,3.18]
[1753999242740,3.26,173.37,173.34,3.18]
[1753999243036,5.7683,173.39,173.32,3.18]
[1753999243433,3.26,173.42,173.31,6.80400399]
[1753999243632,3.26,173.42,173.35,3.18]
[1753999243934,5.7678,173.4,173.36,3.18]
[1753999244137,3.26,173.41,173.38,3.18]
[1753999245741,10.06400399,173.43,173.34,3.18]
[1753999246338,10.06400399,173.43,173.36,3.18]
[1753999246339,5.7679,173.4,173.36,3.18]
[1753999246541,10.06400399,173.43,173.36,3.18]
[1753999246739,3.26,173.38,173.32,3.18]
[1753999247339,5.769,173.37,173.33,3.18]
[1753999247538,3.26,173.38,173.34,3.18]
[1753999247944,5.7687,173.37,173.35,3.18]
[1753999248644,3.26,173.38,173.35,3.18]
[1753999248853,5.7689,173.37,173.35,3.18]
[1753999249054,3.26,173.4,173.32,3.18]
[1753999250247,3.26,173.44,173.34,3.18]
[1753999250445,3.26,173.49,173.23,6.80400399]
[1753999250646,5.7712,173.3,173.25,5.7724]
[1753999250950,5.7712,173.3,173.26,3.18]
[1753999251153,5.7712,173.3,173.23,6.80400399]
[1753999251351,3.26,173.34,173.24,3.18]
[1753999251551,3.26,173.34,173.26,3.18]
[1753999251748,5.7706,173.32,173.27,5.772]
[1753999252047,3.26,173.34,173.26,3.18]
[1753999252455,5.7711,173.3,173.26,3.18]
[1753999252652,6.80400399,173.34,173.26,3.18]
[1753999252852,3.26,173.33,173.26,3.18]
[1753999253450,5.7712,173.3,173.26,3.18]
[1753999253954,3.26,173.32,173.26,3.18]
[1753999254155,5.7713,173.3,173.26,3.18]
[1753999254355,6.80400399,173.3,173.2,6.80400399]
[1753999254555,3.26,173.29,173.21,3.18]
[1753999255458,5.7724,173.26,173.22,3.18]
[1753999256553,3.26,173.29,173.22,3.18]
[1753999257148,5.7727,173.25,173.22,3.18]
[1753999257551,3.26,173.29,173.22,3.18]
[1753999257752,5.7726,173.26,173.22,3.18]
[1753999258249,5.7725,173.26,173.22,3.18]
[1753999258452,6.80400399,173.24,173.19,387.32]
[1753999258659,3.21,173.23,173.18,116.74]
[1753999258959,5.7747,173.19,173.18,116.74]
[1753999259355,5.7747,173.19,173.18,119.92]
[1753999259555,3.21,173.22,173.18,3.18]
[1753999259761,3.21,173.21,173.18,3.18]
[1753999259961,5.7747,173.19,173.18,3.18]
[1753999260156,6.80400399,173.23,173.18,3.18]
[1753999260457,3.21,173.21,173.18,3.18]
[1753999261258,3.21,173.21,173.15,3.18]
[1753999261457,3.21,173.22,173.15,3.18]
[1753999261655,5.7747,173.2,173.15,3.18]
[1753999261857,3.21,173.22,173.15,3.18]
[1753999262360,6.80400399,173.23,173.14,116.46]
[1753999262558,3.21,173.2,173.14,116.46]
[1753999262759,5.776,173.15,173.12,3.18]
[1753999262965,3.21,173.16,173.11,3.18]
[1753999263160,3.21,173.15,173.13,3.18]
[1753999263463,5.7763,173.14,173.13,3.18]
[1753999263957,5.7761,173.15,173.13,3.18]
[1753999264158,5.7761,173.15,173.14,3.18]
[1753999264361,3.21,173.24,173.14,3.18]
[1753999264566,3.21,173.23,173.14,3.18]
[1753999264962,3.21,173.23,173.17,3.18]
[1753999265468,5.7747,173.2,173.18,3.18]
[1753999265662,5.7747,173.2,173.16,5.7756]
[1753999265663,5.7747,173.2,173.19,3.18]
[1753999266968,3.21,173.25,173.17,3.18]
[1753999267355,3.21,173.25,173.21,3.18]
[1753999267565,3.21,173.27,173.19,3.18]
[1753999267762,3.21,173.27,173.2,6.80400399]
[1753999267963,3.21,173.3,173.22,6.80400399]
[1753999268161,3.21,173.33,173.27,3.18]
[1753999268361,3.21,173.39,173.29,3.18]
[1753999268557,3.21,173.39,173.25,115.92]
[1753999268558,6.80400399,173.41,173.31,3.18]
[1753999268758,3.21,173.42,173.34,3.18]
[1753999268963,3.21,173.44,173.4,3.18]
[1753999269161,3.21,173.5,173.41,3.18]
[1753999269357,3.21834755,173.49,173.43,3.18]
[1753999269563,6.08101412,173.61,173.46,5.7656]
[1753999269564,3.21834755,173.48,173.46,5.7656]
[1753999269866,3.21,173.55,173.46,3.18]
[1753999270067,3.21,173.55,173.5,3.18]
[1753999270365,4.72272694,173.64,173.5,3.18]
[1753999270366,3.21,173.58,173.52,6.80400399]
[1753999270560,6.80400399,173.64,173.56,3.18]
[1753999270771,7.24703373,173.63,173.56,3.18]
[1753999271062,3.21,173.63,173.59,3.18]
[1753999271267,3.21,173.63,173.6,3.18]
[1753999271470,6.80400399,173.66,173.57,3.18]
[1753999271666,5.7607,173.61,173.57,3.18]
[1753999271870,3.21,173.6,173.57,3.18]
[1753999272070,3.21,173.63,173.55,6.80400399]
[1753999272364,3.21,173.59,173.55,6.80400399]
[1753999272668,3.21,173.62,173.58,6.80400399]
[1753999272867,3.21,173.62,173.59,3.18]
[1753999273259,8.9706,173.62,173.59,3.18]
[1753999273464,3.21,173.71,173.6,3.18]
[1753999273664,3.21,173.69,173.6,3.18]
[1753999274064,3.21,173.69,173.57,11.39038934]
[1753999274065,4.07976148,173.68,173.57,14.57038934]
[1753999274270,4.07976148,173.67,173.57,14.57038934]
[1753999274469,11.39038934,173.63,173.51,14.57038934]
[1753999274671,3.21,173.62,173.51,14.57038934]
[1753999274867,5.7627,173.55,173.51,11.39038934]
[1753999275069,3.21,173.58,173.52,3.18]
[1753999275268,3.21,173.58,173.5,116.1]
[1753999275463,5.764,173.51,173.5,116.1]
[1753999275670,3.21,173.53,173.49,3.18]
[1753999275868,5.7646,173.5,173.48,11.39038934]
[1753999276069,11.39038934,173.6,173.48,11.39038934]
[1753999276272,3.21,173.56,173.45,399.39038934]
[1753999276474,5.7657,173.46,173.45,399.39038934]
[1753999276774,3.21,173.47,173.43,115.88]
[1753999276972,11.39038934,173.54,173.35,387.58]
[1753999276973,3.21,173.53,173.41,3.18]
[1753999277170,5.767,173.42,173.41,3.18]
[1753999277372,3.21,173.5,173.39,3.18]
[1753999277574,3.21,173.42,173.37,115.78]
[1753999277873,11.39038934,173.45,173.35,387.58]
[1753999278080,3.21,173.43,173.34,3.18]
[1753999278273,5.7703,173.32,173.31,118.92]
[1753999278669,3.21,173.38,173.26,14.57038934]
[1753999278872,3.21,173.36,173.26,14.57038934]
[1753999279067,3.21,173.36,173.26,3.18]
[1753999279272,7.28670479,173.35,173.26,3.18]
[1753999279480,5.772,173.27,173.26,3.18]
[1753999279675,3.21,173.38,173.27,3.18]
[1753999279874,5.77,173.33,173.31,11.39038934]
[1753999280067,3.21,173.38,173.32,3.18]
[1753999280473,5.77,173.33,173.32,3.18]
[1753999280669,3.21,173.41,173.32,3.18]
[1753999280868,3.21,173.41,173.35,11.39038934]
[1753999281076,3.21,173.44,173.36,3.18]
[1753999281272,3.21,173.44,173.38,11.39038934]
[1753999281472,5.768,173.4,173.39,3.18]
[1753999281677,3.21,173.49,173.39,3.18]
[1753999281878,3.21,173.49,173.42,12.48038934]
[1753999282474,5.7667,173.43,173.42,12.48038934]
[1753999282976,3.21,173.47,173.39,12.48038934]
[1753999284081,3.21,173.5,173.43,1.09]
[1753999284382,3.21,173.5,173.42,11.39038934]
[1753999284383,3.21,173.5,173.45,11.39038934]
[1753999284674,3.21,173.53,173.47,1.09]
[1753999285277,3.21,173.57,173.49,1.09]
[1753999285473,3.21,173.57,173.51,11.39038934]
[1753999285881,8.9723,173.57,173.51,11.39038934]
[1753999286081,3.21,173.6,173.51,12.48038934]
[1753999286585,8.9717,173.59,173.51,12.48038934]
[1753999286779,387.6,173.66,173.54,11.39038934]
[1753999286985,11.5153,173.71,173.54,11.39038934]
[1753999286986,3.21,173.65,173.54,11.39038934]
[1753999287180,3.21,173.61,173.54,11.39038934]
[1753999287679,5.7614,173.6,173.54,11.39038934]
[1753999288081,3.21,173.61,173.54,11.39038934]
[1753999288681,3.21,173.61,173.53,1.09]
[1753999288879,11.39038934,173.62,173.52,115.5]
[1753999289183,11.39038934,173.56,173.44,1.09]
[1753999289376,3.26,173.45,173.41,115.3]
[1753999289580,3.26,173.49,173.37,400.00038934]
[1753999289980,3.26,173.46,173.37,387.52]
[1753999290186,4.72272694,173.54,173.17,1660.84]
[1753999290187,3.26,173.43,173.31,1.09]
[1753999290485,3.26,173.4,173.29,126.71038934]
[1753999290876,3.26,173.4,173.29,115.32]
[1753999291386,5.7687,173.38,173.29,115.32]
[1753999291581,3.26,173.4,173.29,115.32]
[1753999291884,9.0278,173.4,173.29,115.32]
[1753999292074,11.39038934,173.44,173.31,11.39038934]
[1753999292277,3.26,173.4,173.31,11.39038934]
[1753999292483,3.26,173.4,173.32,1.09]
[1753999293279,3.26,173.46,173.37,11.39038934]
[1753999293878,3.26,173.46,173.37,12.48038934]
[1753999294084,3.26,173.46,173.36,115.22]
[1753999294085,3.26,173.46,173.4,11.39038934]
[1753999294283,3.26,173.46,173.4,18.24808934]
[1753999294480,11.39038934,173.53,173.4,12.48038934]
[1753999294684,3.26,173.52,173.44,5.7663]
[1753999294885,3.26,173.52,173.44,1.09]
[1753999295085,392.28272694,173.61,173.43,126.59038934]
[1753999295086,3.26,173.54,173.47,1.09]
[1753999295278,3.26,173.54,173.49,17.15478934]
[1753999295482,3.26,173.54,173.5,1.09]
[1753999295882,3.26,173.54,173.5,6.854]
[1753999296078,3.26,173.54,173.5,1.09]
[1753999296283,3.26,173.54,173.49,11.39038934]
[1753999296284,3.26,173.51,173.47,1.09]
[1753999296584,3.26,173.51,173.43,115.2]
[1753999297585,3.26,173.51,173.45,5.7659]
[1753999297787,3.26,173.51,173.43,127.68038934]
[1753999298383,3.26,173.51,173.45,5.7659]
[1753999298990,3.26,173.51,173.44,5.7663]
[1753999299189,3.26,173.51,173.43,126.59038934]
[1753999299588,3.26,173.51,173.46,11.39038934]
[1753999299786,11.39038934,173.59,173.46,12.48038934]
[1753999299993,3.26,173.58,173.49,11.39038934]
[1753999300186,3.26,173.58,173.49,12.48038934]
[1753999300495,3.26,173.58,173.5,115.18]
[1753999300687,3.26,173.58,173.56,5.7622]
[1753999300884,3.26,173.58,173.52,11.39038934]
[1753999301286,3.26,173.58,173.57,5.762]
[1753999301490,3.26,173.63,173.55,11.39038934]
[1753999301693,3.26,173.63,173.59,1.09]
[1753999301894,3.26,173.63,173.62,5.7604]
[1753999302490,398.95038934,173.71,173.62,5.7604]
[1753999302696,3.26,173.69,173.62,5.7604]
[1753999303496,3.26,173.69,173.59,1.09]
[1753999303497,3.26,173.69,173.61,5.7606]
[1753999303685,3.26,173.69,173.58,126.53038934]
[1753999303886,3.26,173.67,173.58,115.14]
[1753999304090,11.39038934,173.65,173.53,1.09]
[1753999304292,11.39038934,173.65,173.52,126.39038934]
[1753999304293,3.26,173.64,173.52,126.39038934]
[1753999304792,3.26,173.64,173.51,387.52]
[1753999304793,11.39038934,173.59,173.5,114.92]
[1753999304999,3.26,173.58,173.5,114.92]
[1753999305187,11.39038934,173.56,173.44,127.42038934]
[1753999305391,11.39038934,173.56,173.41,387.36]
[1753999305392,3.26,173.52,173.41,387.36]
[1753999305990,3.26,173.49,173.39,114.9]
[1753999306304,3.26,173.49,173.38,11.39038934]
[1753999307398,3.26,173.49,173.39,1.09]
[1753999307596,3.26,173.49,173.41,11.39038934]
[1753999307796,3.26,173.49,173.4,1.09]
[1753999307992,11.39038934,173.48,173.37,1.09]
[1753999308301,3.26,173.47,173.36,114.94]
[1753999308998,3.26,173.47,173.36,116.03]
[1753999309400,3.26,173.47,173.4,5.7674]
[1753999309897,3.26,173.47,173.41,11.39038934]
[1753999310402,3.26,173.47,173.44,5.766]
[1753999310703,3.26,173.46,173.36,116.03]
[1753999310891,3.26,173.46,173.41,5.7673]
[1753999311096,3.26,173.45,173.36,116.03]
[1753999311496,3.26,173.45,173.39,5.7677]
[1753999311695,3.26,173.45,173.36,116.03]
[1753999312300,11.39038934,173.49,173.37,1.09]
[1753999312501,3.26,173.47,173.37,1.09]
[1753999312702,3.26,173.47,173.36,126.33038934]
[1753999312906,3.26,173.45,173.38,5.7681]
[1753999313103,3.26,173.45,173.36,114.94]
[1753999313398,3.26,173.45,173.34,1.09]
[1753999313601,3.26,173.43,173.34,1.09]
[1753999313901,3.26,173.43,173.37,5.7685]
[1753999314205,3.26,173.43,173.34,1.09]
[1753999314499,3.26,173.45,173.34,11.39038934]
[1753999314702,3.26,173.45,173.37,12.48038934]
[1753999314903,4.72272694,173.5,173.4,11.39038934]
[1753999315102,7.35029163,173.49,173.41,1.09]
[1753999315302,4.09029163,173.48,173.41,1.09]
[1753999315498,4.09041098,173.47,173.46,5.7654]
[1753999315702,3.26,173.49,173.43,12.48038934]
[1753999316105,4.09048103,173.48,173.47,5.7653]
[1753999316305,3.26,173.49,173.43,12.48038934]
[1753999316508,7.35224226,173.48,173.44,1.09]
[1753999316804,3.26,173.48,173.46,5.7654]
[1753999317005,3.26,173.48,173.44,1.09]
[1753999317600,3.26,173.53,173.42,12.48038934]
[1753999317810,3.26,173.51,173.42,12.48038934]
[1753999318010,3.26,173.49,173.48,5.7648]
[1753999318400,11.39038934,173.57,173.46,1.08]
[1753999318401,3.12,173.52,173.46,1.08]
[1753999318600,3.12,173.55,173.46,1.08]
[1753999318804,4.0976645,173.54,173.46,1.08]
[1753999319002,4.72272694,173.58,173.53,5.7632]
[1753999319202,3.12,173.56,173.48,12.47038934]
[1753999319506,4.09770395,173.55,173.54,5.7627]
[1753999320309,3.95e-06,173.55,173.54,18.23308934]
[1753999320510,4.72272694,173.61,173.54,12.47038934]
[1753999320699,3.12,173.62,173.53,114.46]
[1753999320700,4.72272694,173.63,173.57,11.39038934]
[1753999320902,4.72272694,173.62,173.6,1.08]
[1753999321201,6.08101412,173.64,173.6,1.08]
[1753999321202,4.72272694,173.63,173.6,1.08]
[1753999321608,4.72272694,173.63,173.62,5.7604]
[1753999321810,3.09868446,173.63,173.62,5.7604]
[1753999322109,4.72272694,173.64,173.63,5.76]
[1753999322302,3.09827824,173.64,173.63,5.76]
[1753999322513,3.09827824,173.64,173.63,6.84]
[1753999323409,4.72272694,173.67,173.66,5.759]
[1753999323610,4.72272694,173.68,173.66,12.47038934]
[1753999323815,4.72272694,173.7,173.68,1.08]
[1753999324008,3.12,173.72,173.69,11.39038934]
[1753999324203,3.12,173.74,173.69,11.39038934]
[1753999324410,3.12,173.73,173.69,12.47038934]
[1753999324606,3.12,173.72,173.69,11.39038934]
[1753999324807,3.12,173.75,173.73,5.7565]
[1753999325007,3.12,173.75,173.69,12.47038934]
[1753999325008,3.12,173.76,173.69,12.47038934]
[1753999325205,3.12,173.76,173.71,5.7571]
[1753999325402,3.12,173.76,173.66,11.39038934]
[1753999325603,14.51038934,173.76,173.63,12.47038934]
[1753999325815,3.12,173.67,173.61,11.39038934]
[1753999326111,3.12,173.67,173.58,125.83038934]
[1753999326411,3.12,173.67,173.63,5.7598]
[1753999326614,3.12,173.67,173.59,1.08]
[1753999326813,3.12,173.67,173.61,12.47038934]
[1753999327109,3.12,173.67,173.66,5.759]
[1753999327812,11.39038934,173.78,173.65,1.08]